Cogmind - Beta 16.1 @@@ ROGUE MODE // 2026.04.26 @ 15:07:23 Player: beans Result: Destroyed by C-17 Slicer with Blade Saw Performance ------------- Evolutions (4) 2000 Regions Visited (11) 2200 Robots Destroyed (72) 360 Value Destroyed (2760) 2760 Prototype IDs (8) 160 Alien Tech Used (0) 0 Bonus (65) 65 TOTAL SCORE: 7545 Bonus ------- High Alert Combat Kills 35 Follower Combat Kills 237 Friendly Fire -207 Cogmind --------- Core Integrity 0/850 Matter 42/300 Energy 99/100 System Corruption 45% Temperature Cool (0) Movement Core (50) Location -6/Factory Parts ------- > --- POWER (1) -------- (None) > --- PROPULSION (4) --- (None) > --- UTILITY (6) ------ (None) > --- WEAPON (4) ------- (None) > --- INVENTORY (5) ---- CPS Tube (2) CPS Tube (2) CPS Tube (2) CPS Tube (2) Force Lance Peak State ------------ > --- POWER ------------ Angular Momentum Engine > --- PROPULSION ------- Flexi-carbon Leg Flexi-carbon Leg Flexi-carbon Leg Flexi-carbon Leg > --- UTILITY ---------- Medium Storage Unit Transmission Jammer Layered Light Armor Plating Thermal Shield Force Field System Shield > --- WEAPON ----------- Heavy Laser Gauss Cannon Heavy Flak Cannon Advanced Micro-nuke Launcher > --- INVENTORY -------- High-capacity Battery Thief Drone Bay Plasma Cutter CPS Tube CPS Tube CPS Tube CPS Tube CPS Tube Force Lance [Rating: 72] Favorites ----------- Power Deuterium Engine Engine Deuterium Engine Power Core Light Nuclear Core Propulsion Light Treads Treads Light Treads Leg Flexi-carbon Leg Hover Unit Gravmag System Utility Medium Storage Unit Device Force Field Storage Medium Storage Unit Processor Advanced Visual Processing Unit Hackware System Shield Protection Core Shielding Weapon Heavy Laser Energy Gun Heavy Laser Energy Cannon Advanced Beam Cannon Ballistic Gun Light Assault Rifle Ballistic Cannon Heavy Flak Cannon Launcher Advanced Micro-nuke Launcher Special Weapon Plasma Cutter Piercing Weapon Force Lance Special Melee Weapon Datajack Build | -11 -10 -10 -10 -9 -8 -8 -8 -8 -6 -6 -6 ------- Run | Yrd Mat Min Exi Min Mat Sto Rec Scr Fac Was Fac Slots Evolved 8 | . . . . . 4 . . . 4 . . Power . | . . . . . . . . . . . . Propulsion 2 | . . . . . 1 . . . 1 . . Utility 4 | . . . . . 1 . . . 3 . . Weapon 2 | . . . . . 2 . . . . . . Parts Attached 63 | 6 1 1 1 4 18 9 2 4 11 3 3 Power 10 | 1 . . . 2 2 1 1 . 2 . 1 Engine 9 | 1 . . . 1 2 1 1 . 2 . 1 Core 1 | . . . . 1 . . . . . . . Reactor . | . . . . . . . . . . . . Propulsion 15 | 2 . . . . 5 2 . 2 4 . . Treads 9 | 2 . . . . 3 2 . 2 . . . Leg 5 | . . . . . 1 . . . 4 . . Wheel . | . . . . . . . . . . . . Hover 1 | . . . . . 1 . . . . . . Flight . | . . . . . . . . . . . . Utility 16 | 1 1 1 1 . 4 1 1 1 3 1 1 Device 6 | . . 1 . . 2 . . . 3 . . Storage 4 | 1 . . 1 . . . 1 1 . . . Processor 1 | . . . . . . . . . . . 1 Hackware 1 | . . . . . 1 . . . . . . Protection 4 | . 1 . . . 1 1 . . . 1 . Artifact . | . . . . . . . . . . . . Weapon 22 | 2 . . . 2 7 5 . 1 2 2 1 Energy Gun 11 | . . . . 1 7 3 . . . . . Energy Cannon 1 | . . . . . . 1 . . . . . Ballistic Gun 3 | 2 . . . . . . . 1 . . . Ballistic Cannon 2 | . . . . . . . . . 2 . . Launcher 1 | . . . . . . . . . . 1 . Special Weapon 1 | . . . . 1 . . . . . . . Impact Weapon . | . . . . . . . . . . . . Slashing Weapon . | . . . . . . . . . . . . Piercing Weapon 1 | . . . . . . . . . . 1 . Special Melee Weapon 2 | . . . . . . 1 . . . . 1 Unidentified Prototypes 8 | . . 1 . . 1 4 . . . 1 1 Corrupted Parts 4 | . . . . . 2 . . . . 1 1 System Corruption 8 | . . . . . 2 . . . . 2 4 Parts Lost 32 | . . . . 3 11 3 . . . . 15 Power 4 | . . . . 1 1 1 . . . . 1 Propulsion 10 | . . . . . 5 1 . . . . 4 Utility 6 | . . . . . . 1 . . . . 5 Weapon 12 | . . . . 2 5 . . . . . 5 Highest Loss Streak 10 | . . . . 3 4 3 . . . . 10 To Critical Strikes . | . . . . . . . . . . . . Average Backups 7 | . 3 5 5 6 7 6 7 7 10 9 9 Power . | . . . 1 . . . . . . . . Propulsion . | . . . . . . . . . . . . Utility 4 | . 3 4 4 6 6 5 5 4 4 2 1 Weapon . | . . . . . . . 1 . . . 1 Tool/Special . | . . . . . . . . . . . . Unused Backups 14 | . . 2 . 1 2 . 2 1 . 1 5 Power . | . . . . . . . . . . . . Propulsion . | . . . . . . . . . . . . Utility 9 | . . 2 . 1 2 . 2 1 . 1 . Weapon . | . . . . . . . . . . . . Tool/Special 5 | . . . . . . . . . . . 5 Average Slot Usage (%) 89 | . 94 100 100 89 70 89 100 97 85 100 72 Engine 8 | . 14 14 14 8 8 7 9 9 6 6 1 Treads 19 | . 28 28 28 28 16 20 27 25 13 . . Leg 3 | . . . . . . . . . 8 26 19 Device 5 | . . 4 14 10 3 4 . . 10 20 13 Storage 12 | . 14 14 14 14 9 9 12 18 13 6 5 Hackware 6 | . . . . . 8 9 9 9 6 6 5 Protection 3 | . 8 9 . 3 5 2 5 . . 6 3 Energy Gun 13 | . . . . 5 17 25 18 17 11 6 5 Energy Cannon 3 | . . . . . . . 9 9 4 . . Ballistic Gun 4 | . 28 28 28 14 . . . . . . . Ballistic Cannon 1 | . . . . . . . . . 1 13 10 Special Melee Weapon 4 | . . . . . . 8 9 9 6 1 1 Peak Build Rating 72 | 6 7 14 14 15 30 32 29 32 61 72 71 Average Rating 28 | 4 6 9 14 12 20 28 28 28 45 70 48 On Entrance 25 | . 6 7 14 14 15 30 26 29 32 61 72 Avg Prop Armor Cover (%) 6 | . . . . . 5 6 6 8 . . 5 Naked Turns 36 | . . . . . . . . . . . 36 Heaviest Build 64 | 11 12 15 20 27 35 37 37 35 56 64 56 Greatest Support 80 | 40 40 40 40 40 62 42 40 70 80 80 80 Greatest Overweight (x) 8 | . . . . . 8 6 . . 2 . 4 Average Overweight (x) . | . . . . . . . . . . . . Largest Inventory Capacity 10 | 8 8 8 10 10 10 10 10 10 10 10 10 Average Capacity 9 | 6 8 8 8 10 10 10 10 10 10 10 9 Most Carried 10 | 4 4 8 10 10 10 10 10 10 10 10 10 Average Carried 9 | . 3 6 8 9 9 9 10 9 10 9 9 Final Capacity 10 | 8 8 8 10 10 10 10 10 10 10 10 5 Final Carried 10 | . 4 8 10 10 10 10 10 10 10 10 5 Class Distribution -------------------- 31% | Mutant 27% | Commander-Gunner 13% | Commander-Tank 12% | Tank 6% | Scavenger-Gunner 3% | Scavenger-Mutant Dominant Class ---------------- Mutant | -10/Materials Mutant | -10/Mines Mutant | -10/Exiles Mutant | -9/Mines Mutant | -8/Materials Scavenger-Gunner | -8/Storage Commander-Tank | -8/Recycling Commander-Gunner | -8/Scraptown Commander-Tank | -6/Factory Tank | -6/Waste Tank | -6/Factory Resources | -11 -10 -10 -10 -9 -8 -8 -8 -8 -6 -6 -6 ----------- Run | Yrd Mat Min Exi Min Mat Sto Rec Scr Fac Was Fac Matter Collected 1458 | 204 . 159 60 80 183 96 211 77 54 . 334 Remotely . | . . . . . . . . . . . . Salvage Created 3366 | . . 204 . 188 1706 490 165 . 108 229 276 Parts 183 | . . 17 . 8 91 35 10 . 3 4 15 Haulers Intercepted 2 | . . . . . . 2 . . . . . Recyclers Shooed 2 | . . . . . 1 1 . . . . . Parts Field Recycled . | . . . . . . . . . . . . Retrieved Matter . | . . . . . . . . . . . . Parts Self-Destructed . | . . . . . . . . . . . . Prevented . | . . . . . . . . . . . . Parts Restored . | . . . . . . . . . . . . Kills | -11 -10 -10 -10 -9 -8 -8 -8 -8 -6 -6 -6 ------- Run | Yrd Mat Min Exi Min Mat Sto Rec Scr Fac Was Fac Combat Hostiles Destroyed 53 | . . 4 . 2 25 5 3 . 2 1 11 Guns 37 | . . 4 . 2 23 4 2 . 1 . 1 Cannons 5 | . . . . . . . 1 . 1 . 3 AOE 10 | . . . . . 1 1 . . . 1 7 Classes Destroyed 15 | . . 2 . 2 7 3 . . . 1 . Worker 2 | . . . . . 2 . . . . . . Builder 5 | . . 1 . . 2 . . . . . 2 Hauler 2 | . . . . . . 2 . . . . . Recycler 6 | . . . . 1 4 1 . . . . . Operator 2 | . . . . . . 2 . . . . . Watcher 1 | . . . . . . 1 . . . . . Swarmer 7 | . . . . . 2 . . . . . 5 Grunt 25 | . . 4 . 1 15 1 . . . . 4 Brawler 2 | . . . . 1 . . . . . . 1 Duelist 3 | . . . . . 2 1 . . . . . Protector 2 | . . . . . 2 . . . . . . Sentry 9 | . . . . . 2 3 3 . 1 . . Hunter 1 | . . . . . 1 . . . . . . Programmer 3 | . . . . . 1 . . . 1 . 1 Compactor 1 | . . . . . . . . . . 1 . Thug 1 | . . . . . . . . . . 1 . Best Kill Streak 7 | . . 2 . 1 7 5 1 . 1 1 4 Combat Bots Only 5 | . . 2 . 1 5 2 1 . 1 1 4 Max Kills in Single Turn 3 | . . 1 . 1 2 2 1 . 1 1 3 Gunslinging 1 | . . . . . 1 . . . . . . Exploded 3 | . . . . . 1 1 . . . 1 3 Melee . | . . . . . . . . . . . . Uniques/NPCs Destroyed . | . . . . . . . . . . . . Combat | -11 -10 -10 -10 -9 -8 -8 -8 -8 -6 -6 -6 -------- Run | Yrd Mat Min Exi Min Mat Sto Rec Scr Fac Was Fac Hostile Shots Fired 392 | . . 31 . 40 136 13 6 . 14 . 152 Missed 125 | . . 7 . 11 41 4 1 . 6 . 55 Hits 267 | . . 24 . 29 95 9 5 . 8 . 97 Melee 21 | . . . . 4 3 . . . . . 14 Projectile 246 | . . 24 . 25 92 9 5 . 8 . 83 AOE 3 | . . . . . . . . . . . 3 Critical Strikes 16 | . . 1 . 2 4 1 . . 1 . 7 Actively Blocked 1 | . . . . 1 . . . . . . . Damage Taken 5094 | . . 329 . 377 1673 304 71 . 32 50 2258 Core 1395 | . . 41 . 68 375 56 . . . . 855 Absorbed by Shields 132 | . . . . . . . . . 35 53 44 Redirected to Shielding 31 | . . 8 . 15 8 . . . . . . Ignored by Resistances 20 | . . . . . . . . . 8 . 12 Regen/Repaired (Parts) 363 | . . . . . . . . 363 . . . Core Remaining (%) 59 | 100 . . . 56 . . . 21 . . . Volleys Fired 179 | . 2 18 . 15 71 24 5 . 6 9 29 Largest 4 | . 2 2 . 2 3 3 3 . 3 4 2 Hottest 192 | . 40 40 . 65 184 184 192 . 192 183 113 Shots Fired 367 | . 4 37 . 20 145 63 15 . 17 16 50 Gun 295 | . 4 37 . 16 145 63 10 . 11 2 7 Cannon 59 | . . . . . . . 5 . 6 5 43 Launcher 9 | . . . . . . . . . . 9 . Special 4 | . . . . 4 . . . . . . . Kinetic 101 | . 4 37 . 12 . . . . . 5 43 Thermal 132 | . . . . 8 39 44 15 . 17 2 7 Explosive 9 | . . . . . . . . . . 9 . Electromagnetic 125 | . . . . . 106 19 . . . . . Robot Hit Streak 16 | . . 9 . 4 16 8 4 . 6 4 3 Robot Miss Streak 8 | . 4 3 . 3 3 3 4 . 5 6 8 Penetration Max . | . . . . . . . . . . . . Secondary Targets 4 | . . 1 . . 3 . . . . . . Max Gunslinging Chain 1 | . . 1 . . 1 . . . . . . Shots Hit Robots 227 | . . 27 . 8 110 35 7 . 10 5 25 Core Hits 152 | . . 12 . 5 79 16 4 . 4 4 28 Critical Kills . | . . . . . . . . . . . . Critical Parts Destroyed . | . . . . . . . . . . . . Critical Strikes 3 | . . . . . 1 1 . . . . 1 Burn 2 | . . . . . 1 1 . . . . . Blast 1 | . . . . . . . . . . . 1 Melee Attacks 11 | . . . . . . 6 2 . 1 . 2 Impact . | . . . . . . . . . . . . Slashing . | . . . . . . . . . . . . Piercing . | . . . . . . . . . . . . Sneak Attacks 8 | . . . . . . 5 2 . 1 . . Combat Hostiles . | . . . . . . . . . . . . Follow-up Attacks . | . . . . . . . . . . . . Damage Inflicted 7460 | . . 302 . 123 2361 648 99 . 199 2182 1546 Guns 3245 | . . 302 . 92 2043 542 59 . 112 20 75 Cannons 659 | . . . . . . . 40 . 87 75 457 Explosions 3508 | . . . . . 318 95 . . . 2087 1008 Melee . | . . . . . . . . . . . . Ramming 17 | . . . . . . 11 . . . . 6 Kinetic 891 | . . 302 . 57 . . . . . 75 457 Thermal 2252 | . . . . 66 759 500 99 . 199 20 609 Explosive 2561 | . . . . . . . . . . 2087 474 Electromagnetic 1739 | . . . . . 1602 137 . . . . . Impact . | . . . . . . . . . . . . Slashing . | . . . . . . . . . . . . Piercing . | . . . . . . . . . . . . Highest Corruption 45 | . 1 1 1 2 2 3 3 . 2 22 45 Average Corruption 7 | . 1 1 1 1 1 2 3 . 2 13 32 Corruption Purged . | . . . . . . . . . . . . Corruption Blocked . | . . . . . . . . . . . . Effects 97 | . . 1 6 3 3 11 14 . 9 6 44 Message Errors 22 | . . . 3 . 1 3 . . 2 1 12 Matter Fused 22 | . . . 2 2 1 1 4 . 3 . 9 Heat Flow Errors 11 | . . . 1 . 1 1 2 . 1 . 5 Energy Discharges 7 | . . . . . . 1 2 . 1 1 2 Parts Fused 1 | . . . . . . 1 . . . . . Data Loss (minor) 7 | . . . . . . 1 4 . 1 . 1 Data Loss (major) 9 | . . . . 1 . 1 1 . 1 2 3 Misfires 4 | . . 1 . . . 1 . . . 1 1 Alerts 2 | . . . . . . . 1 . . . 1 Misdirections 6 | . . . . . . . . . . 1 5 Weapon Failures 6 | . . . . . . 1 . . . . 5 Overload Shots . | . . . . . . . . . . . . Overflow Damage 203 | . . . . . 6 14 . . . . 183 Projectiles . | . . . . . . . . . . . . Explosions 203 | . . . . . 6 14 . . . . 183 Melee . | . . . . . . . . . . . . Knockbacks 6 | . . . . . . . . . . . 6 Impact 1 | . . . . . . . . . . . 1 Kinetic 5 | . . . . . . . . . . . 5 Secondary . | . . . . . . . . . . . . Self-Inflicted Damage 488 | . . . . . 67 4 . . . 104 313 Shots 7 | . . . . . 2 . . . . 2 3 Rammed 3 | . . . . . 1 2 . . . . . Targets Rammed 5 | . . . . . 1 2 . . . . 2 Kicked 2 | . . . . . . . . . . . 2 Crushed . | . . . . . . . . . . . . Highest Temperature 363 | . . 30 199 34 363 342 243 . 222 111 200 Average Temperature 84 | . . 12 104 10 78 109 95 . 90 46 106 Received Heat Transfer 1555 | . . 207 . 120 774 90 27 . 9 . 328 Effects 4 | . . . . . . 4 . . . . . Energy Bleed 1 | . . . . . . 1 . . . . . Interference 3 | . . . . . . 3 . . . . . Siege Activations . | . . . . . . . . . . . . Martial Activations . | . . . . . . . . . . . . Shielding Activations . | . . . . . . . . . . . . Robots Disrupted 1 | . . . . . 1 . . . . . . Combat Hostiles 1 | . . . . . 1 . . . . . . Robots Corrupted 1 | . . . . . 1 . . . . . . Combat Hostiles 1 | . . . . . 1 . . . . . . Parts Fried 6 | . . . . . 6 . . . . . . Impact Corruptions . | . . . . . . . . . . . . Robots Melted . | . . . . . . . . . . . . Combat Hostiles . | . . . . . . . . . . . . Parts Melted 4 | . . . . . 1 . 1 . 2 . . Heat Transferred 3579 | . . . . 185 1303 951 185 . 370 37 548 Parts Sabotaged . | . . . . . . . . . . . . Parts Stolen . | . . . . . . . . . . . . Parts Stripped . | . . . . . . . . . . . . Power Chain Reactions 6 | . . . . . 5 1 . . . . . Alert | -11 -10 -10 -10 -9 -8 -8 -8 -8 -6 -6 -6 ------- Run | Yrd Mat Min Exi Min Mat Sto Rec Scr Fac Was Fac Maximum Alert Level 2 | . . . . . 2 . . . . . 2 Low Security (%) 79 | 100 100 100 . 100 42 100 100 . 100 100 43 Level 1 18 | . . . . . 53 . . . . . 46 Level 2 2 | . . . . . 3 . . . . . 9 Level 3 . | . . . . . . . . . . . . Level 4 . | . . . . . . . . . . . . Level 5 . | . . . . . . . . . . . . High Security . | . . . . . . . . . . . . Max Security . | . . . . . . . . . . . . Peak Influence 491 | . . 70 . 82 426 179 155 . 93 46 491 Initial 174 | . . . . . . 174 25 . . . 18 Average 102 | . . 18 . 39 198 81 58 . 12 25 216 Influence Increases 2945 | . . 105 . 169 919 325 240 . 227 86 874 Destroy 0b10 Robot/C 1200 | . . 80 . 120 460 120 80 . 120 . 220 Destroy 0b10 Robot/NC 105 | . . 5 . 5 50 30 . . 5 . 10 Destroy Leader 256 | . . 20 . 20 110 46 . . 40 . 20 Allied During Kill 157 | . . . . 9 1 60 40 . 47 . . Trap Triggered on 0b10 10 | . . . . . . 10 . . . . . Successful Hack 27 | . . . . . 21 6 . . . . . Select Force Hacks 120 | . . . . . . . 120 . . . . Disable Machine 390 | . . . . . 30 30 . . 15 . 315 Anti-Garrison Action 150 | . . . . . 150 . . . . . . Destroy Structure 230 | . . . . . 22 8 . . . 86 114 Partial Spotted 30 | . . . . . . . . . . . 30 Lose Combat Pursuer 270 | . . . . 15 75 15 . . . . 165 Influence Decreases 2454 | . . 105 . 169 505 672 307 . 227 60 409 Entered New Map 290 | . . . . . . 240 42 . . . 8 Time Decay 1639 | . . 105 . 139 355 362 265 . 87 60 266 Lost Part 305 | . . . . 30 110 30 . . . . 135 Lost Ally 220 | . . . . . 40 40 . . 140 . . Squads Dispatched 14 | . . . . . 6 . . . 5 . 3 Investigation 1 | . . . . . 1 . . . . . . Extermination 2 | . . . . . . . . . 1 . 1 Reinforcement 4 | . . . . . . . . . 2 . 2 Assault 2 | . . . . . 2 . . . . . . Garrison 5 | . . . . . 3 . . . 2 . . Intercept . | . . . . . . . . . . . . Searches Triggered . | . . . . . . . . . . . . Construction Impeded 1 | . . . . . . . . . 1 . . Haulers Reinforced . | . . . . . . . . . . . . Active Scanning Responses . | . . . . . . . . . . . . Cargo Convoy Interrupts . | . . . . . . . . . . . . Stealth | -11 -10 -10 -10 -9 -8 -8 -8 -8 -6 -6 -6 --------- Run | Yrd Mat Min Exi Min Mat Sto Rec Scr Fac Was Fac Distress Signals 6 | . . . . . 2 2 . . 1 . 1 Communications Jammed . | . . . . . . . . . . . . Distress Signals . | . . . . . . . . . . . . Times Spotted 99 | . 1 4 . 7 35 9 3 . 3 5 32 Peak Tracking Total 12 | . 3 2 . 4 10 5 1 . 1 4 12 Tactical Retreats 12 | . . . . 1 2 1 . . . 1 7 Traps | -11 -10 -10 -10 -9 -8 -8 -8 -8 -6 -6 -6 ------- Run | Yrd Mat Min Exi Min Mat Sto Rec Scr Fac Was Fac Traps Triggered 6 | . 1 . . . . 1 . . 3 . 1 Indirectly . | . . . . . . . . . . . . Trap Hack Attempts 94 | . . . . . . 93 . . 1 . . Triggered . | . . . . . . . . . . . . Disarmed 6 | . . . . . . 6 . . . . . Reprogrammed 2 | . . . . . . 1 . . 1 . . Reused 1 | . . . . . . 1 . . . . . Traps Extracted . | . . . . . . . . . . . . Installed . | . . . . . . . . . . . . Triggered 1 | . . . . . . 1 . . . . . Most Traps Carried 3 | . . 3 3 3 3 3 3 3 . . . Machines | -11 -10 -10 -10 -9 -8 -8 -8 -8 -6 -6 -6 ---------- Run | Yrd Mat Min Exi Min Mat Sto Rec Scr Fac Was Fac Machines Disabled 28 | . 1 . . . 3 2 . . 1 . 21 Max in Single Turn 5 | . 1 . . . 1 1 . . 1 . 5 Garrison Access 1 | . . . . . 1 . . . . . . Machines Repaired . | . . . . . . . . . . . . Machines Dismantled 1 | . . . . . . 1 . . . . . Machines Sabotaged . | . . . . . . . . . . . . Overloaded Fab Kills . | . . . . . . . . . . . . Hacking | -11 -10 -10 -10 -9 -8 -8 -8 -8 -6 -6 -6 --------- Run | Yrd Mat Min Exi Min Mat Sto Rec Scr Fac Was Fac Machines Accessed 15 | . . 1 . . 3 2 4 1 3 . 1 Terminals 2 | . . . . . 1 1 . . . . . Fabricators 1 | . . . . . . . . . . . 1 Repair Stations . | . . . . . . . . . . . . Recycling Units 5 | . . . . . . 1 4 . . . . Scanalyzers 4 | . . . . . 1 . . . 3 . . Garrison Access 1 | . . . . . 1 . . . . . . Total Hacks 41 | . . 1 . . 16 7 7 4 5 . 1 Successful 26 | . . 1 . . 10 5 4 4 2 . . Failed 15 | . . . . . 6 2 3 . 3 . 1 Catastrophic . | . . . . . . . . . . . . Database Lockouts . | . . . . . . . . . . . . Manual 28 | . . . . . 12 6 7 . 3 . . Terminals 6 | . . . . . 4 2 . . . . . Fabricators 1 | . . . . . . . . . . . 1 Repair Stations . | . . . . . . . . . . . . Recycling Units 12 | . . . . . . 5 7 . . . . Scanalyzers 11 | . . . . . 6 . . . 5 . . Garrison Access 6 | . . . . . 6 . . . . . . Terminal Hacks 7 | . . 1 . . 1 1 . 4 . . . Record 4 | . . . . . . . . 4 . . . Robot Schematic 1 | . . . . . . 1 . . . . . Open Door 1 | . . 1 . . . . . . . . . Reprogram Traps 1 | . . . . . 1 . . . . . . Fabricator Hacks . | . . . . . . . . . . . . Repair Station Hacks . | . . . . . . . . . . . . Recycling Unit Hacks . | . . . . . . . . . . . . Scanalyzer 4 | . . . . . 3 . . . 1 . . Insert Component 2 | . . . . . 2 . . . . . . Analyze 1 | . . . . . 1 . . . . . . Retrieve Study 1 | . . . . . . . . . 1 . . Garrison Access Hacks 1 | . . . . . 1 . . . . . . Coupler Status 1 | . . . . . 1 . . . . . . Unauthorized Hacks 14 | . . . . . 5 4 4 . 1 . . Terminals 1 | . . . . . . 1 . . . . . Assimilate 1 | . . . . . . 1 . . . . . Fabricators . | . . . . . . . . . . . . Repair Stations . | . . . . . . . . . . . . Recycling Units 7 | . . . . . . 3 4 . . . . Reject 1 | . . . . . . 1 . . . . . Recyclers 1 | . . . . . . 1 . . . . . Mask 1 | . . . . . . 1 . . . . . Tunnel 4 | . . . . . . . 4 . . . . Scanalyzers 2 | . . . . . 1 . . . 1 . . Researchers 2 | . . . . . 1 . . . 1 . . Garrison Access 4 | . . . . . 4 . . . . . . Broadcast 1 | . . . . . 1 . . . . . . Restock 1 | . . . . . 1 . . . . . . Decoy 1 | . . . . . 1 . . . . . . Reprogram 1 | . . . . . 1 . . . . . . Data Cores Recovered 2 | . . . . . . 2 . . . . . Used 1 | . . . . . . 1 . . . . . Hacking Detections 6 | . . . . . 2 1 1 . 1 . 1 Full Trace Events . | . . . . . . . . . . . . Feedback Events . | . . . . . . . . . . . . Feedback Blocked . | . . . . . . . . . . . . Robot Schematics Acquired 1 | . . . . . . 1 . . . . . Robots Built . | . . . . . . . . . . . . Authchips . | . . . . . . . . . . . . Time . | . . . . . . . . . . . . Total Robot Build Rating . | . . . . . . . . . . . . Part Schematics Acquired 1 | . . . . . 1 . . . . . . Parts Built . | . . . . . . . . . . . . Authchips . | . . . . . . . . . . . . Time . | . . . . . . . . . . . . Total Part Build Rating . | . . . . . . . . . . . . Part Studies Acquired 1 | . . . . . . . . . 1 . . Parts Repaired . | . . . . . . . . . . . . Time . | . . . . . . . . . . . . Parts Recycled . | . . . . . . . . . . . . Recycled Matter . | . . . . . . . . . . . . Retrieved Matter . | . . . . . . . . . . . . Retrieved Components . | . . . . . . . . . . . . Parts Scanalyzed 1 | . . . . . 1 . . . . . . Part Schematics Acquired 1 | . . . . . 1 . . . . . . Parts Damaged . | . . . . . . . . . . . . Bothacking | -11 -10 -10 -10 -9 -8 -8 -8 -8 -6 -6 -6 ------------ Run | Yrd Mat Min Exi Min Mat Sto Rec Scr Fac Was Fac Used RIF Installer . | . . . . . . . . . . . . Robots Hacked 3 | . . . . . . 2 . . 1 . . Non-combat 3 | . . . . . . 2 . . 1 . . Combat . | . . . . . . . . . . . . Robot Hacks Applied 3 | . . . . . . 2 . . 1 . . parse_system 1 | . . . . . . 1 . . . . . find_chute 1 | . . . . . . . . . 1 . . find_recycling 1 | . . . . . . 1 . . . . . Relay Couplers Released 5 | . . . . . 5 . . . . . . Machine Destruction 2 | . . . . . 2 . . . . . . Programmers 3 | . . . . . 3 . . . . . . Fabnet Peak Effective % . | . . . . . . . . . . . . Robots Rewired . | . . . . . . . . . . . . Allies Hacked . | . . . . . . . . . . . . Hacks Repelled . | . . . . . . . . . . . . Allies | -11 -10 -10 -10 -9 -8 -8 -8 -8 -6 -6 -6 -------- Run | Yrd Mat Min Exi Min Mat Sto Rec Scr Fac Was Fac Total Allies 11 | . . . . . 1 9 . . . 1 . Largest Group 9 | . . . . . 1 9 7 7 7 1 . Highest-Rated Group 157 | . . . . . 15 157 125 125 125 31 . Highest-Rated Ally 31 | . . . . . 15 29 29 29 29 31 . Total Orders 5 | . . 1 . 2 2 . . . . . . RETURN 5 | . . 1 . 2 2 . . . . . . Ally Attacks 124 | . . . . 18 18 9 7 . 72 . . Total Damage 1294 | . . . . 60 121 64 114 . 935 . . Kills 11 | . . . . 4 . 1 1 . 5 . . Allies Corrupted . | . . . . . . . . . . . . Allies Melted 1 | . . . . . . . . . 1 . . Intel | -11 -10 -10 -10 -9 -8 -8 -8 -8 -6 -6 -6 ------- Run | Yrd Mat Min Exi Min Mat Sto Rec Scr Fac Was Fac Active Infowar (turns) 668 | . . . . . . . . . 136 156 376 Optics 198 | . . . . . . . . . . . 198 Jamming 470 | . . . . . . . . . 136 156 178 Robot Analysis Total . | . . . . . . . . . . . . Derelict Logs Recovered . | . . . . . . . . . . . . Drone Launches 15 | . . 3 . 7 5 . . . . . . Drone Recoveries 14 | . . 3 . 7 4 . . . . . . Exploration | -11 -10 -10 -10 -9 -8 -8 -8 -8 -6 -6 -6 ------------- Run | Yrd Mat Min Exi Min Mat Sto Rec Scr Fac Was Fac Turns Passed 7058 | 58 158 371 464 281 1082 857 638 1684 604 156 705 Spaces Moved 3675 | 40 92 191 288 127 435 358 364 825 370 105 480 Core 108 | 16 . . . . 4 4 . . . . 84 Treads 2906 | 24 92 191 288 127 422 354 364 825 219 . . Legs 657 | . . . . . 5 . . . 151 105 396 Wheels . | . . . . . . . . . . . . Hover 4 | . . . . . 4 . . . . . . Flight . | . . . . . . . . . . . . Fastest Speed 50 | 50 160 160 160 160 152 145 160 160 120 120 50 Average Speed 152 | 116 160 160 160 160 165 157 160 161 146 120 123 Slowest Speed 450 | 160 160 160 160 160 450 350 160 163 260 120 250 Overloaded Moves . | . . . . . . . . . . . . Propulsion Burnouts . | . . . . . . . . . . . . Robots Hopped . | . . . . . . . . . . . . Potential Cave-ins 3 | . . . . . . . . . . 3 . Cave-ins Triggered . | . . . . . . . . . . . . Exploration Rate (%) 39 | 3 21 51 59 35 19 51 61 57 12 88 18 Regions Visited 11 Branch Regions 6 Pre-discovered Areas 4 | . . . . . . . 4 . . . . Known Exits Taken . | . . . . . . . . . . . . Unknown Exits Taken 9 | 1 1 1 1 1 1 1 1 1 . . . Scrap Searched 10 | . . 1 . 2 . . . 7 . . . Spaces Dug 12 | . . . . . . . . . . 12 . Terrain Destroyed 321 | . . . . . 18 7 . . . 172 124 Melee . | . . . . . . . . . . . . Projectile 8 | . . . . . . . . . . 1 7 AOE 313 | . . . . . 18 7 . . . 171 117 Terrain Rammed 1 | . . . . . . 1 . . . . . Walls Destroyed . | . . . . . . . . . . . . Machines Disabled . | . . . . . . . . . . . . Actions | -11 -10 -10 -10 -9 -8 -8 -8 -8 -6 -6 -6 --------- Run | Yrd Mat Min Exi Min Mat Sto Rec Scr Fac Was Fac Total 4754 | 52 99 225 293 181 657 577 408 1179 419 123 541 Wait 619 | 1 . 7 . 29 123 65 30 331 21 . 12 Move 3665 | 39 91 190 287 126 434 357 363 824 370 104 480 Hop . | . . . . . . . . . . . . Pick Up 36 | 6 5 6 3 2 2 1 1 6 . 3 1 Fast Attach 49 | . . 1 . 2 17 8 2 6 10 . 3 Attach 12 | 6 1 . . 1 . 1 . . . 1 2 Detach 4 | . . . . 1 1 . 1 . . . 1 Swap 14 | . . . 1 3 3 2 1 . 1 3 . Drop 50 | . . 3 2 2 5 4 3 12 7 3 9 Fire 179 | . 2 18 . 15 71 24 5 . 6 9 29 Melee 11 | . . . . . . 6 2 . 1 . 2 Ram 1 | . . . . . . 1 . . . . . Kick 2 | . . . . . . . . . . . 2 Crush 3 | . . . . . 1 2 . . . . . Escape Stasis 2 | . . . . . . . . . 2 . . Rewire 4 | . . . . . . 4 . . . . . Trap 94 | . . . . . . 93 . . 1 . . Miscellaneous 9 | . . . . . . 9 . . . . . Route ------- -11/Scrapyard -10/Materials -10/Mines -10/Exiles -9/Mines -8/Materials -8/Storage (discovered 2 exits: [*Fac] / *Rec) -8/Recycling (discovered 2 exits: *Fac / *Scr) -8/Scraptown -6/Factory -6/Waste -6/Factory History --------- Turn | Location | Event 6 | -11/Scrapyard | Discovered new exit (range 15) 59 | -11/Scrapyard | Entered Materials 199 | -10/Materials | Discovered new exit (range 8) 217 | -10/Materials | Entered Mines 311 | -10/Mines | Build established: Mutant 399 | -10/Mines | Found a hidden stash of uninstalled traps 470 | -10/Mines | Found the Drone Emporium 477 | -10/Mines | Found Prototype Device 477 | -10/Mines | Identified Thief Drone Bay 580 | -10/Mines | Deemed a non-threat by the Exiles lab entrance 581 | -10/Mines | Discovered new exit (range 5) 588 | -10/Mines | Entered Exiles 628 | -10/Exiles | Met 8R-AWN 654 | -10/Exiles | Met EX-HEX 715 | -10/Exiles | Met EX-DEC 1035 | -10/Exiles | Discovered new exit (range 11) 1052 | -10/Exiles | Entered Mines 1234 | -9/Mines | Lost 3 parts (1p2w) 1315 | -9/Mines | Discovered new exit (range 10) 1333 | -9/Mines | Entered Materials 1333 | -8/Materials | Evolved 4 slots: Propulsion x1, Utility x1, Weapon x2 1519 | -8/Materials | Garrison activated, responded to threat 1972 | -8/Materials | Core integrity fell below 50% 1991 | -8/Materials | Lost 4 parts (1p1n2w) 2408 | -8/Materials | Discovered new exit (range 4) 2415 | -8/Materials | Entered Storage 2671 | -8/Storage | Build established: Scavenger-Gunner 2898 | -8/Storage | Assisted by bots powering up and referring to "LRC-V3" 2905 | -8/Storage | Lost 3 parts (1p1n1u) 2997 | -8/Storage | Discovered new exit (range 9) 3260 | -8/Storage | Discovered new exit (range 3) 3272 | -8/Storage | Build established: Commander-Tank 3272 | -8/Storage | Entered Recycling 3272 | -8/Recycling | Accompanied by 7 allies 3694 | -8/Recycling | Discovered new exit (range 8) 3849 | -8/Recycling | Scanned before Scraplab entrance 3873 | -8/Recycling | Entered Scraplab 3886 | -8/Recycling | Discovered new exit (range 3) 3910 | -8/Recycling | Entered Scraptown 3910 | -8/Scraptown | Accompanied by 7 allies 3910 | -8/Scraptown | System corruption cleaned by C-Scrubber 3971 | -8/Scraptown | Build established: Commander-Gunner 4067 | -8/Scraptown | Visited Symbiants 4110 | -8/Scraptown | Visited Bundlers 4215 | -8/Scraptown | Visited Shadow of the Wyrm 4250 | -8/Scraptown | Visited Awakened 4298 | -8/Scraptown | Visited CR-KLE's Repair Center 4311 | -8/Scraptown | CR-KLE repaired 6 parts 5173 | -8/Scraptown | Visited The Evicted 5189 | -8/Scraptown | Visited CPS Storage 5266 | -8/Scraptown | Discovered new exit (range 13) 5594 | -8/Scraptown | Entered Factory 5594 | -6/Factory | Accompanied by 7 allies 5594 | -6/Factory | Evolved 4 slots: Propulsion x1, Utility x3 6007 | -6/Factory | Garrison activated, responded to threat 6045 | -6/Factory | Lost 3 allies 6198 | -6/Factory | Sucked down chute 6198 | -6/Factory | Entered Waste 6199 | -6/Waste | Met a frightened Derelict 6209 | -6/Waste | Spotted C-40 Crusher 6213 | -6/Waste | EMP discharged 6213 | -6/Waste | System corruption reached 10% 6216 | -6/Waste | Found Corrupted Prototype Launcher 6218 | -6/Waste | Identified Adv. Micro-nuke Launcher 6242 | -6/Waste | Spotted C-40 Crusher 6251 | -6/Waste | Destroyed C-40 Crusher 6270 | -6/Waste | Spotted C-40 Crusher 6274 | -6/Waste | Spotted C-40 Crusher 6279 | -6/Waste | Spotted C-40 Crusher 6313 | -6/Waste | EMP discharged 6338 | -6/Waste | Discovered new exit (range 13) 6354 | -6/Waste | Entered Factory 6414 | -6/Factory | Build established: Tank 6521 | -6/Factory | System corruption reached 30% 6567 | -6/Factory | Lost 4 parts (1p1n1u1w) 7021 | -6/Factory | Core integrity fell below 50% 7049 | -6/Factory | Lost 10 parts (3n4u3w) 7052 | -6/Factory | Core integrity fell below 20% 7059 | -6/Factory | Destroyed by C-17 Slicer with Blade Saw Last Messages --------------- Dropped Thief Drone Bay. Dropped Lyr. Light Armor Plating. U-05 Engineer builds a Wall. Dropped Plasma Cutter. Dropped CPS Tube. Dropped Med. Storage Unit. K-01 Serf collects debris. U-05 Engineer lays Concrete. U-05 Engineer builds a Wall. U-05 Engineer lays Concrete. K-01 Serf cleans the Nuclear Reactor. ALERT: Suspicious intruders detected, dispatching Cutter reinforcements to area. JZZNYQ4E ,&WJ0GTUC S-27 Virus destroyed. C-17 Slicer destroyed. Penetrated by Slug. Knocked back. Map ----- +----------------------------------------------------+ | ?????????????????????????????? #???????????????? | | ?????????????????????????????? #???????????????? | | ?????????????????????????????# #???????????????? | | ????????????????????????###### #???????????????? | | ???????????????????????? [# #???????????????? | | ????????????????????????""" # #???????????????? | | ?????????????????????????"" # #???????????????? | | ??????????##?????????????"" # #???????????????? | | ?########## ##???????????? # #???????????????? | | ?? ! ???????????? # #???????????????# | | ???? #####????###+## #???????????????# | | ?????? """ # ###### #???????????????# | | ?????? """ + " #???????????????# | | ?????? """ !! # = ###### C #???????????????# | | ???? !! ## ##????# ###+####?????????????# | | ???############## ####### # #?????????????# | | ???????????# %=% # # #????????? ?# | | ???????????# /!= # # """"#?????????? # | | ???????????# """" """" # # """"#???????????? + | | ???????????# """" """" # # """"#?????????????# | | ???????????# """" """" # k# """"#?????????????# | | ???????????# """" """" # # """"#?????????????# | | ???????????# """" """" #k # """"#?????????????# | | ???????????# """" """" # # """"#?????????????# | | ???????????# #c # #?????????????# | | ???????????# #@ # ############### | | ???????????# + # / | | ???????????# ! # # ! ######/#####+## | | ???????????############## ######### # | | ???????????????????????? ??????# # | | ???????????????????????? #?????# ! # | | ???????????????????????? #?????# # | | ???????????????????????? H #?????# """ """ # | | ??????????????????????? #?????# """ """ / | | ??????????????????????? #?????# """ """ # | | ??????????????????????? #?????? # | | ???????????????????????###+####?????# """ """ # | | ????????????????????????????????????# """ """ # | | ????????????????????????????????????# ??"" """ # | | ????????????????????????????????????#! ?? # | | ?????????????????????????????????????#?????#+##### | | ?????????????????????????????????????????????????# | | ?????????????????????????????????????????????????# | | ????????????????????????????????????????????????? | | ?????????????????????????????????????????????????# | | ?????????????????????????????????????????????????# | | ?????????????????????????????????????????????????# | | ?????????????????????????????????????????????????# | | ?????????????????????????????????????????????????# | | ?????????????????????????????????????????????????? | +----------------------------------------------------+ Best States ------------- Heat Dissipation 45 Energy Generation 20 Energy Capacity 550 Matter Stores 300 Matter Capacity 300 Sight Range 20 Terrain Scan Density 10 Jamming Range 12 Power Amplification 20 Armor Coverage 225 Resistance: TH 20 Core Shielding 20 Evasion (%) 55 Recoil Reduction 3 Defensive Hacking 10 Item Schematics ----------------- Plasma Cutter | -8/Materials | Scanalyzed Robot Schematics ------------------ K-01 Serf | -8/Storage | Hacked Fabricated ------------ Nothing Repaired ---------- Nothing Studied --------- Angular Momentum Engine | -6/Factory | Hacked Alien Tech Used ----------------- None Achievements -------------- Hehehe May I Have Another? Challenges ------------ None Game ------ Seed PulsarArmorFist Manual? 0 Play Time 00:47:39 Cumulative 278.6 hours Start 2026.04.26 @ 14:21:50 End 2026.04.26 @ 15:07:23 Sessions 1 Manual Loads 0 Difficulty Rogue Special Mode None Game No. 735 Rogue 733 Adventurer 2 Explorer 0 Win Type - Total 0 Types 0/0/0/0/0/0/0/0/0/0 Lore% 68 Gallery% 64 Achievement% 45 Wizard Run 0 Options --------- Layout 2 ASCII 0 Keyboard 0 Movement Mouse Keybinds 0 Fullscreen 1 Font 24/Smallcaps Map View 50x44 Zoom Use 0% Tactical HUD 0 Map Filters NONE Filters NONE Steam 1 RUN: 466c5dac-9d0c-4c04-a2e8-b7abf22080a5